bitfinex-derivatives/quotes_SOLF0:USTF0_20241211
["timestamp","ask_amount","ask_price","bid_price","bid_amount"]
[1733920949666,16.47305463,226.18,226.07,5.43022719]
[1733920949982,2.2105,226.1,226.07,5.43022719]
[1733920950471,2.2101,226.13,226.07,5.43022719]
[1733920950868,16.47305463,226.18,226.07,7.64082719]
[1733920951661,2.2101,226.13,226.07,7.64082719]
[1733920952165,2.2102,226.12,226.07,7.64082719]
[1733920952560,16.47305463,226.18,226.07,5.43022719]
[1733920952758,2.2105,226.09,226.0,85.53584516]
[1733920952963,16.47305463,226.18,226.0,85.53584516]
[1733920952964,16.47305463,226.18,226.0,19.29335463]
[1733920953729,16.47305463,226.18,226.0,2.8203]
[1733920953863,16.47305463,226.18,226.05,5.43509282]
[1733920955060,2.21,226.14,226.05,5.43509282]
[1733920955465,16.47305463,226.18,226.05,5.43509282]
[1733920955762,2.2101,226.13,226.06,2.2107]
[1733920956263,2.2104,226.1,226.05,5.43509282]
[1733920956667,16.47305463,226.18,226.05,5.43509282]
[1733920956863,2.2105,226.09,226.05,5.43509282]
[1733920957361,2.2106,226.08,226.0,2.8203]
[1733920957560,10.33105263,226.1,225.96,10.33105263]
[1733920958163,10.33105263,226.1,226.0,5.40327177]
[1733920959067,2.211,226.04,226.0,5.40327177]
[1733920959272,1.3515,226.11,225.89,66.27368379]
[1733920959464,19.33648621,226.11,225.99,5.2429625]
[1733920959864,2.2106,226.08,226.0,2.2113]
[1733920959968,19.33648621,226.11,226.0,2.2113]
[1733920960265,2.2108,226.06,225.99,7.4543625]
[1733920960467,19.33648621,226.11,225.99,7.4543625]
[1733920961067,2.2108,226.06,225.99,7.4543625]
[1733920961372,19.33648621,226.11,225.99,7.4543625]
[1733920961373,19.33648621,226.11,225.99,5.2429625]
[1733920961567,16.53568621,226.07,225.99,5.2429625]
[1733920961961,16.53568621,226.07,225.96,2.2116]
[1733920962162,16.53568621,226.07,225.94,2.7508]
[1733920962370,2.2111,226.03,225.96,2.2117]
[1733920962567,16.53568621,226.07,225.94,2.7508]
[1733920962568,16.53568621,226.07,225.98,5.33155145]
[1733920963288,16.53568621,226.07,225.89,66.27368379]
[1733920963569,16.53568621,226.03,225.93,5.33155145]
[1733920963781,1.3506,226.02,225.93,5.33155145]
[1733920963969,2.2116,225.98,225.93,5.33155145]
[1733920964768,2.2117,225.97,225.93,5.33155145]
[1733920965074,3.9806,226.02,225.89,66.27368379]
[1733920965471,2.2117,225.96,225.9,2.2123]
[1733920965972,2.2119,225.94,225.89,66.27368379]
[1733920966170,16.53568621,225.99,225.89,66.27368379]
[1733920966663,16.53568621,225.95,225.73,2.6536]
[1733920966894,16.53568621,225.95,225.76,16.53568621]
[1733920967283,2.2123,225.9,225.76,16.53568621]
[1733920967786,2.2125,225.89,225.84,5.44191894]
[1733920968775,2.2122,225.92,225.84,5.44191894]
[1733920968976,16.53568621,225.95,225.84,5.44191894]
[1733920969581,2.2124,225.9,225.84,5.44191894]
[1733920969770,16.53568621,225.95,225.84,5.44191894]
[1733920970578,16.53568621,225.95,225.84,7.65481894]
[1733920972381,2.2123,225.9,225.84,5.44191894]
[1733920973382,2.2125,225.88,225.84,5.44191894]
[1733920973681,16.53568621,225.95,225.76,16.53568621]
[1733920973873,2.2126,225.87,225.8,2.2132]
[1733920974076,16.53568621,225.91,225.8,2.2132]
[1733920974283,16.53568621,225.91,225.74,64.99404769]
[1733920974479,2.2128,225.85,225.79,2.2134]
[1733920974676,16.53568621,225.91,225.79,2.2134]
[1733920974877,16.53568621,225.91,225.74,64.99404769]
[1733920975082,16.53568621,225.91,225.8,5.2724052]
[1733920975287,2.8483,225.9,225.8,5.2724052]
[1733920975681,2.213,225.84,225.78,2.2134]
[1733920975913,2.8483,225.9,225.74,64.99404769]
[1733920975914,4.293,225.9,225.74,64.99404769]
[1733920976288,2.2131,225.82,225.77,2.2136]
[1733920977187,2.2135,225.79,225.77,5.31012595]
[1733920977982,2.2135,225.78,225.73,2.214]
[1733920978277,2.2135,225.78,225.69,1.4287]
[1733920978589,2.2134,225.8,225.76,5.33893475]
[1733920979094,16.53568621,225.87,225.76,5.33893475]
[1733920979326,2.2133,225.81,225.76,7.55263475]
[1733920980384,2.2131,225.82,225.77,2.2136]
[1733920980787,2.2129,225.84,225.76,5.33893475]
[1733920980988,16.53568621,225.87,225.76,5.33893475]
[1733920981204,10.35584674,225.86,225.76,5.33893475]
[1733920982100,10.35584674,225.79,225.69,1.4287]
[1733920982390,10.35584674,225.79,225.65,10.35584674]
[1733920982599,2.2139,225.74,225.68,2.2144]
[1733920982791,10.35584674,225.83,225.65,10.35584674]
[1733920982792,10.35584674,225.76,225.65,10.35584674]
[1733920983006,10.35584674,225.76,225.62,1.3702]
[1733920983007,10.35584674,225.76,225.69,5.27510323]
[1733920983295,2.2141,225.72,225.69,5.27510323]
[1733920984894,2.2141,225.72,225.66,2.2147]
[1733920985091,2.2142,225.71,225.66,2.2147]
[1733920985391,10.35584674,225.76,225.65,2.2148]
[1733920985586,2.2143,225.7,225.67,5.43060337]
[1733920986488,10.35584674,225.76,225.64,2.2149]
[1733920986691,2.2144,225.69,225.64,2.2149]
[1733920987092,2.2145,225.68,225.63,2.215]
[1733920987290,10.35584674,225.73,225.63,2.215]
[1733920987732,2.2145,225.69,225.63,2.215]
[1733920987996,10.35584674,225.73,225.63,2.215]
[1733920988692,2.2146,225.67,225.65,5.43799591]
[1733920989302,2.56,225.72,225.59,12.91584674]
[1733920989488,2.56,225.72,225.62,2.2151]
[1733920989898,2.2144,225.69,225.62,2.2151]
[1733920990085,2.56,225.72,225.62,2.2151]
[1733920990289,2.56,225.72,225.63,2.2149]
[1733920990938,2.2145,225.69,225.64,2.2149]
[1733920991109,2.56,225.72,225.63,5.25239265]
[1733920991693,2.2143,225.71,225.66,2.2147]
[1733920992399,4.7741,225.72,225.67,2.2146]
[1733920992600,2.56,225.76,225.65,10.35584674]
[1733920992793,2.56,225.81,225.65,12.91584674]
[1733920992992,10.35584674,225.8,225.7,2.2142]
[1733920993193,11.80264674,225.8,225.7,2.2142]
[1733920993697,10.35584674,225.74,225.63,5.25239265]
[1733920994392,2.2142,225.71,225.63,5.25239265]
[1733920994593,10.35584674,225.74,225.63,5.25239265]
[1733920994803,2.2139,225.74,225.69,2.2144]
[1733920995001,10.35584674,225.77,225.63,5.25239265]
[1733920995301,10.35584674,225.77,225.69,2.2143]
[1733920995302,2.2138,225.75,225.69,2.2143]
[1733920995494,2.2138,225.75,225.63,5.25239265]
[1733920995999,2.2138,225.75,225.69,2.2143]
[1733920996196,2.2139,225.74,225.69,2.2143]
[1733920996403,10.35584674,225.77,225.63,5.25239265]
[1733920996601,10.35584674,225.77,225.67,2.2145]
[1733920997697,1.3442,225.76,225.66,2.2147]
[1733920997897,10.35584674,225.74,225.66,2.2147]
[1733920998100,2.2143,225.7,225.63,5.25239265]
[1733920998603,12.91584674,225.74,225.63,5.25239265]
[1733920998604,2.2145,225.68,225.63,5.25239265]
[1733920998801,12.91584674,225.74,225.63,5.25239265]
[1733920999503,2.2144,225.69,225.64,2.2149]
[1733921000199,12.91584674,225.74,225.63,5.25239265]
[1733921000644,2.2145,225.68,225.63,7.46739265]
[1733921000727,2.2145,225.68,225.63,5.25239265]
[1733921001602,2.2146,225.67,225.63,5.25239265]
[1733921002006,12.91584674,225.74,225.63,5.25239265]
[1733921002206,2.2146,225.67,225.63,7.46739265]
[1733921003998,2.2147,225.66,225.63,5.25239265]
[1733921004211,12.91584674,225.74,225.63,5.25239265]
[1733921004910,2.2147,225.67,225.63,5.25239265]
[1733921005328,10.35584674,225.71,225.63,5.25239265]
[1733921006307,2.56,225.74,225.63,5.25239265]
[1733921006709,2.56,225.74,225.63,7.46729265]
[1733921007317,10.35584674,225.75,225.63,5.25239265]
[1733921007618,2.56,225.74,225.63,5.25239265]
[1733921008300,2.2142,225.71,225.65,2.2148]
[1733921009502,2.7282,225.76,225.64,10.35584674]
[1733921009707,2.7282,225.76,225.64,12.91584674]
[1733921010122,2.2139,225.74,225.64,12.91584674]
[1733921010511,2.7282,225.76,225.67,10.35584674]
[1733921010520,1.3442,225.76,225.67,10.35584674]
[1733921010841,2.56,225.77,225.72,2.214]
[1733921011518,2.56,225.77,225.67,10.35584674]
[1733921011813,2.56,225.77,225.7,2.2143]
[1733921012011,2.56,225.77,225.67,10.35584674]
[1733921012511,2.2139,225.74,225.67,10.35584674]
[1733921012714,2.56,225.77,225.67,10.35584674]
[1733921013112,2.2137,225.76,225.7,2.2143]
[1733921013429,2.56,225.77,225.67,10.35584674]
[1733921013677,4.7736,225.77,225.7,2.2143]
[1733921014113,4.7736,225.77,225.7,2.2142]
[1733921014606,2.2137,225.76,225.7,2.2142]
[1733921015206,2.46,225.79,225.7,2.2142]
[1733921015405,2.2138,225.75,225.7,2.2142]
[1733921017306,2.46,225.74,225.63,5.25239265]
[1733921017511,3.8216,225.74,225.63,5.25239265]
[1733921017915,3.8216,225.74,225.63,7.46739265]
[1733921019117,3.8216,225.74,225.63,5.25239265]
[1733921019811,2.2146,225.67,225.63,5.25239265]
[1733921022907,2.2147,225.66,225.63,5.25239265]
[1733921024416,2.2144,225.69,225.63,5.25239265]
[1733921024920,2.2146,225.67,225.63,7.46729265]
[1733921025212,10.35584674,225.73,225.63,5.25239265]
[1733921025824,2.2146,225.67,225.63,5.25239265]
[1733921026321,2.2146,225.67,225.63,7.46729265]
[1733921026712,2.2145,225.68,225.63,7.46729265]
[1733921027317,2.2146,225.67,225.63,5.25239265]
[1733921028314,10.35584674,225.73,225.63,5.25239265]
[1733921028517,10.35584674,225.7,225.59,2.2154]
[1733921028719,3.7985,225.69,225.59,2.2154]
[1733921028913,3.7985,225.69,225.57,10.35584674]
[1733921029144,2.215,225.63,225.58,7.53169335]
[1733921029418,10.35584674,225.67,225.54,11.73394674]
[1733921029848,2.2152,225.62,225.57,2.2155]
[1733921030249,10.35584674,225.67,225.6,2.2153]
[1733921030250,2.2148,225.65,225.6,2.2153]
[1733921030425,10.35584674,225.67,225.54,11.73394674]
[1733921030927,10.35584674,225.67,225.59,2.2153]
[1733921031126,10.35584674,225.67,225.54,11.73394674]
[1733921031319,2.2152,225.61,225.57,2.2155]
[1733921031521,10.35584674,225.67,225.56,5.33226202]
[1733921031522,2.46,225.64,225.56,5.33226202]
[1733921031931,2.215,225.63,225.59,2.2153]
[1733921032924,2.2152,225.62,225.56,5.33226202]
[1733921033142,2.46,225.64,225.57,6.63907162]
[1733921033489,9.09907162,225.64,225.57,6.63907162]
[1733921034419,2.2153,225.61,225.57,6.63907162]
[1733921034721,2.2153,225.61,225.35,17.03955222]
[1733921034722,6.63907162,225.62,225.55,8.85477162]
[1733921034925,6.63907162,225.62,225.55,2.2157]
[1733921035120,6.63907162,225.62,225.5,64.72933195]
[1733921035425,6.63907162,225.58,225.53,2.216]
[1733921035822,6.63907162,225.58,225.53,7.61072857]
[1733921036445,6.63907162,225.58,225.53,5.39472857]
[1733921037725,6.63907162,225.58,225.52,6.63907162]
[1733921037930,2.46,225.59,225.5,6.63907162]
[1733921037931,6.63907162,225.56,225.5,6.63907162]
[1733921038336,8.85487162,225.56,225.51,2.2161]
[1733921038528,6.63907162,225.56,225.5,6.63907162]
[1733921038730,2.2158,225.55,225.49,8.85537162]
[1733921038928,2.2158,225.55,225.49,14.16700725]
[1733921039328,6.63907162,225.56,225.49,6.63907162]
[1733921039329,2.2159,225.54,225.49,6.63907162]
[1733921039972,2.2159,225.54,225.48,6.63907162]
[1733921039973,2.216,225.53,225.48,6.63907162]
[1733921040636,2.2161,225.52,225.48,6.63907162]
[1733921040937,2.2161,225.52,225.47,5.36123292]
[1733921041136,2.2161,225.52,225.47,12.00030454]
[1733921041634,2.2162,225.51,225.47,6.63907162]
[1733921042353,6.63907162,225.5,225.4,2.46]
[1733921042632,2.46,225.54,225.39,1.3226]
[1733921042633,2.46,225.54,225.44,6.63907162]
[1733921042832,6.63907162,225.5,225.44,6.63907162]
[1733921043030,2.34,225.49,225.44,6.63907162]
[1733921043235,2.2165,225.47,225.44,6.63907162]
[1733921043443,2.34,225.49,225.39,1.3226]
[1733921043631,2.34,225.49,225.42,6.63907162]
[1733921043937,2.2166,225.47,225.42,6.63907162]
[1733921044340,1.3993,225.58,225.46,6.63907162]
[1733921044535,1.3993,225.58,225.54,6.63907162]
[1733921045030,3.6148,225.58,225.54,6.63907162]
[1733921046337,1.3993,225.58,225.54,6.63907162]
[1733921046739,3.6148,225.58,225.52,6.63907162]
[1733921046933,1.3993,225.58,225.52,6.63907162]
[1733921047238,1.3993,225.58,225.51,2.2161]
[1733921048485,1.3993,225.58,225.52,2.216]
[1733921049048,1.3993,225.58,225.49,10.37768646]
[1733921049049,3.6148,225.58,225.49,10.37768646]
[1733921049241,2.34,225.59,225.54,2.2158]
[1733921049536,10.37768646,225.65,225.54,2.2158]
[1733921049739,2.34,225.62,225.54,2.2158]
[1733921049936,2.2153,225.6,225.54,2.2158]
[1733921050140,10.37768646,225.65,225.52,10.37768646]
[1733921050446,10.37768646,225.65,225.56,2.2157]
[1733921050447,4.5551,225.62,225.56,2.2157]
[1733921050635,2.34,225.62,225.52,10.37768646]
[1733921051042,2.2154,225.6,225.54,2.2158]
[1733921051237,12.71768646,225.62,225.48,10.37768646]
[1733921051541,12.71768646,225.62,225.5,2.2162]
[1733921051542,2.2156,225.57,225.5,2.2162]
[1733921051855,2.34,225.57,225.48,10.37768646]
[1733921052146,2.34,225.57,225.45,2.34]
[1733921052349,2.34,225.57,225.47,10.37768646]
[1733921052540,10.37768646,225.62,225.47,10.37768646]
[1733921052747,10.37768646,225.59,225.48,2.2164]
[1733921053049,10.37768646,225.59,225.47,10.37768646]
[1733921053347,2.2161,225.52,225.47,10.37768646]
[1733921053852,2.2162,225.51,225.45,2.2167]
[1733921054633,2.2162,225.51,225.44,10.37768646]
[1733921054634,2.2162,225.51,225.46,2.2166]
[1733921054889,2.34,225.54,225.44,10.37768646]
[1733921055213,2.2163,225.5,225.44,10.37768646]
[1733921055849,2.2164,225.49,225.45,2.2167]
[1733921056642,2.34,225.54,225.44,10.37768646]
[1733921056839,2.2161,225.52,225.44,10.37768646]
[1733921057052,2.34,225.54,225.47,10.37768646]
[1733921057557,2.34,225.54,225.51,2.2161]
[1733921058384,2.2157,225.57,225.5,10.37768646]
[1733921058762,2.34,225.59,225.5,10.37768646]
[1733921059023,11.68968646,225.65,225.5,10.37768646]
[1733921059124,2.2152,225.61,225.56,2.2157]
[1733921059443,2.34,225.62,225.53,10.37768646]
[1733921059639,2.2153,225.6,225.53,10.37768646]
[1733921060043,2.34,225.62,225.57,2.2155]
[1733921060243,3.691,225.63,225.53,10.37768646]
[1733921060750,2.2151,225.62,225.56,2.2157]
[1733921060947,3.691,225.63,225.56,2.2157]
[1733921061849,2.34,225.62,225.56,2.2157]
[1733921062749,2.2152,225.61,225.56,2.2157]
[1733921065754,2.2153,225.6,225.56,2.2157]
[1733921066948,2.34,225.62,225.51,1.3123]
[1733921067150,2.34,225.62,225.54,7.49641127]
[1733921067559,2.2153,225.6,225.54,7.49641127]
[1733921067751,12.71768646,225.62,225.52,2.216]
[1733921068155,2.2155,225.58,225.49,10.37768646]
[1733921068477,12.71768646,225.62,225.52,2.216]
[1733921068655,2.34,225.61,225.52,2.216]
[1733921068856,2.2158,225.55,225.51,2.2161]
[1733921069746,2.34,225.55,225.43,1.3104]
[1733921069957,2.34,225.55,225.44,10.37768646]
[1733921070353,2.2163,225.5,225.45,2.2166]
[1733921070550,2.34,225.55,225.44,5.43983836]
[1733921070955,3.7055,225.55,225.44,5.43983836]
[1733921071492,1.3779,225.54,225.44,5.43983836]
[1733921071850,2.2165,225.48,225.41,10.37768646]
[1733921072655,2.2165,225.48,225.42,2.2169]
[1733921072854,2.34,225.5,225.41,5.26266782]
[1733921073157,2.2166,225.47,225.41,5.26266782]
[1733921074589,2.2166,225.47,225.41,7.47976782]
[1733921078669,2.34,225.5,225.39,2.2172]
[1733921078860,2.34,225.5,225.34,10.37768646]
[1733921078861,10.37768646,225.47,225.34,10.37768646]
[1733921079067,1.414,225.49,225.37,15.70569284]
[1733921079271,6.64826807,225.47,225.41,6.64826807]
[1733921079965,2.2167,225.46,225.41,6.64826807]
[1733921080569,2.2167,225.45,225.41,6.64826807]
[1733921082276,2.26,225.48,225.38,6.64826807]
[1733921082465,2.26,225.48,225.37,5.32800638]
[1733921082466,8.90826807,225.47,225.4,6.64826807]
[1733921082671,2.26,225.46,225.42,6.64826807]
[1733921082875,2.26,225.47,225.44,6.64826807]
[1733921084574,2.26,225.47,225.43,2.2169]
[1733921084966,2.26,225.47,225.41,2.217]
[1733921085174,2.2168,225.45,225.42,6.64826807]
[1733921085773,2.2167,225.46,225.42,6.64826807]
[1733921086574,4.4767,225.46,225.42,6.64826807]
[1733921086980,2.26,225.46,225.42,6.64826807]
[1733921087378,2.26,225.47,225.44,2.2167]
[1733921088685,2.26,225.48,225.44,2.2167]
[1733921088880,2.26,225.48,225.43,2.2169]
[1733921089779,2.2166,225.46,225.43,2.2169]
[1733921089980,2.2166,225.46,225.42,8.86526807]
[1733921090388,2.2165,225.47,225.42,6.64826807]
[1733921090983,4.4765,225.48,225.42,6.64826807]
[1733921091182,2.26,225.48,225.44,6.64826807]
[1733921091684,2.26,225.49,225.44,6.64826807]
[1733921092281,2.26,225.49,225.41,5.30358363]
[1733921092483,8.90826807,225.49,225.42,6.64826807]
[1733921093082,2.2166,225.46,225.41,7.52058363]
[1733921093281,2.2166,225.46,225.42,6.64826807]
[1733921094291,2.2166,225.46,225.42,8.86516807]
[1733921094492,2.2165,225.47,225.42,6.64826807]
[1733921094814,6.64826807,225.45,225.31,2.26]
[1733921095007,2.26,225.44,225.37,6.64826807]
[1733921095693,2.2169,225.43,225.38,2.2174]
[1733921096786,2.2169,225.43,225.38,7.46883277]
[1733921097221,2.26,225.44,225.39,8.86546807]
[1733921097793,2.26,225.47,225.43,6.64826807]
[1733921100654,2.26,225.47,225.44,2.2167]
[1733921100717,2.26,225.47,225.43,6.64826807]
[1733921101692,4.4766,225.47,225.43,2.2169]
[1733921102621,2.26,225.47,225.42,6.64826807]
[1733921102877,2.26,225.47,225.4,6.64826807]
[1733921103493,2.26,225.47,225.4,8.86546807]
[1733921103494,2.2168,225.45,225.4,8.86546807]
[1733921103897,6.64826807,225.46,225.4,8.86546807]
[1733921104093,2.2169,225.44,225.4,8.86546807]
[1733921104590,2.217,225.43,225.39,2.2173]
[1733921104901,2.2,225.42,225.31,1.3393]
[1733921105116,8.84826807,225.42,225.31,1.3393]
[1733921105329,8.84826807,225.42,225.36,6.64826807]
[1733921106588,2.2,225.42,225.36,6.64826807]
[1733921107586,2.2,225.42,225.37,2.2174]
[1733921107587,4.4171,225.42,225.37,2.2174]
[1733921108291,2.2173,225.4,225.35,14.09900715]
[1733921109198,2.2173,225.4,225.37,6.64826807]
[1733921109199,2.2,225.4,225.37,6.64826807]
[1733921109699,8.84826807,225.4,225.32,6.64826807]
[1733921110108,2.2174,225.38,225.34,2.2178]
[1733921110331,8.84826807,225.4,225.32,6.64826807]
[1733921110999,2.2,225.4,225.28,6.06253483]
[1733921111198,6.64826807,225.31,225.25,30.89840741]
[1733921111390,8.84826807,225.31,225.26,4.32287808]
[1733921111791,11.06646807,225.31,225.26,6.54147808]
[1733921111995,11.06646807,225.31,225.26,2.2186]
[1733921112204,6.64826807,225.29,225.24,24.25013934]
[1733921112392,8.86656807,225.29,225.24,8.28123483]
[1733921113089,8.86656807,225.29,225.24,2.2187]
[1733921113793,6.64826807,225.29,225.25,2.2187]
[1733921114804,4.4331,225.48,225.25,6.64826807]
[1733921115097,2.2181,225.32,225.25,6.64826807]
[1733921115319,4.4181,225.32,225.25,6.64826807]
[1733921115533,6.64826807,225.31,225.24,5.35043178]
[1733921115728,2.2182,225.3,225.24,5.35043178]
[1733921116002,2.2182,225.3,225.24,11.99869985]
[1733921116209,2.2184,225.29,225.24,14.21749985]
[1733921116500,8.86666807,225.29,225.24,14.21749985]
[1733921117695,8.86646807,225.31,225.24,11.99869985]
[1733921117892,6.64826807,225.31,225.24,11.99869985]
[1733921119105,2.2183,225.29,225.25,2.2186]
[1733921119293,8.86656807,225.29,225.24,5.35043178]
[1733921119919,6.64826807,225.27,225.24,5.35043178]
[1733921120100,5.44842894,225.43,225.25,6.64826807]
[1733921120339,6.64826807,225.33,225.25,6.64826807]
[1733921120497,6.64826807,225.31,225.27,2.2185]
[1733921121612,8.86636807,225.31,225.27,2.2185]
[1733921121812,8.86636807,225.31,225.25,6.64826807]
[1733921122005,6.64826807,225.29,225.24,5.35043178]
[1733921122195,6.64826807,225.27,225.24,5.35043178]
[1733921122709,6.64826807,225.25,225.2,24.25013934]
[1733921123020,2.2,225.24,225.21,28.65984594]
[1733921123206,2.2,225.24,225.22,4.31953087]
[1733921123397,2.2,225.24,225.22,2.219]
[1733921124298,4.4188,225.24,225.21,24.34031507]
[1733921124502,4.4188,225.24,225.2,29.65612829]
[1733921124701,6.64826807,225.23,225.21,10.47142336]
[1733921124901,6.64826807,225.23,225.2,23.50341773]
[1733921124902,6.64826807,225.23,225.2,29.65612829]
[1733921125215,4.4188,225.24,225.21,4.31867774]
[1733921125216,2.2,225.24,225.21,4.31867774]
[1733921125459,2.2,225.24,225.19,24.34031507]
[1733921125603,2.2,225.24,225.19,28.65885222]
[1733921125903,2.2,225.24,225.2,4.31853715]
[1733921126104,2.2,225.24,225.19,6.15271056]
[1733921126500,10.41027987,225.23,225.18,24.34031507]
[1733921126697,10.41027987,225.23,225.18,10.46939103]
[1733921126897,10.41027987,225.23,225.18,6.15271056]
[1733921127703,10.41027987,225.23,225.17,24.34031507]
[1733921128238,10.41027987,225.23,225.16,24.34031507]
[1733921128613,10.41027987,225.17,225.16,6.15271056]
[1733921128905,2.2197,225.15,225.14,73.62088776]
[1733921129099,2.2197,225.15,225.14,71.78956687]
[1733921129506,2.2197,225.15,225.14,67.4681772]
[1733921130006,2.2197,225.15,225.14,71.7565287]
[1733921130311,2.2197,225.15,225.14,65.2850772]
[1733921131118,4.4197,225.15,225.14,65.2850772]
[1733921131821,4.4197,225.15,225.11,6.15271056]
[1733921131999,2.2202,225.1,225.09,6.15271056]
[1733921132200,14.85047987,225.1,225.07,6.15271056]
[1733921132396,12.63027987,225.1,225.06,24.34031507]
[1733921132597,14.85057987,225.1,225.06,24.34031507]
[1733921132805,2.22,225.09,225.07,10.43611439]
[1733921133002,2.22,225.09,225.07,24.34031507]
[1733921133202,44.84492038,225.23,225.08,28.6237189]
[1733921133203,2.22,225.11,225.08,28.6237189]
[1733921133407,10.41027987,225.17,225.09,12.65641439]
[1733921133604,2.22,225.16,225.09,28.62260735]
[1733921133804,4.4396,225.16,225.11,6.15271056]
[1733921134210,2.2198,225.14,225.11,6.15271056]
[1733921135410,2.2197,225.16,225.11,6.15271056]
[1733921135707,2.22,225.16,225.12,28.62260735]
[1733921135910,10.41027987,225.23,225.13,6.50219228]
[1733921135911,2.2194,225.19,225.13,6.50219228]
[1733921136106,2.22,225.18,225.13,2.2199]
[1733921136312,2.22,225.18,225.12,24.34031507]
[1733921136508,2.22,225.18,225.13,10.43566122]
[1733921136721,2.22,225.18,225.13,6.15271056]
[1733921136908,2.2195,225.17,225.13,6.15271056]
[1733921137108,2.22,225.18,225.12,24.34031507]
[1733921137950,2.22,225.18,225.09,72.75041806]
[1733921138040,2.22,225.18,225.01,67.61779024]
[1733921138313,2.2199,225.13,225.07,123.47119677]
[1733921138515,4.4399,225.13,225.07,123.47119677]
[1733921138709,4.4399,225.13,225.07,2.2205]
[1733921139415,2.22,225.13,225.06,2.2206]
[1733921139919,4.44,225.13,225.06,10.41027987]
[1733921140113,2.22,225.14,225.06,10.41027987]
[1733921140543,2.22,225.16,225.09,10.41027987]
[1733921140628,2.22,225.17,225.09,10.41027987]
[1733921140932,4.4395,225.17,225.09,10.41027987]
[1733921141612,2.2197,225.15,225.09,12.63047987]
[1733921141814,2.22,225.17,225.09,12.63047987]
[1733921143616,2.2199,225.14,225.09,12.63047987]
[1733921143809,2.22,225.17,225.09,12.63047987]
[1733921144243,2.2198,225.14,225.09,12.63047987]
[1733921144896,2.2199,225.13,225.09,12.63047987]
[1733921145321,2.2199,225.14,225.09,10.41027987]
[1733921145919,2.2197,225.16,225.11,2.2201]
[1733921146220,2.22,225.17,225.09,10.41027987]
[1733921146620,2.2193,225.19,225.1,2.2202]
[1733921146816,2.22,225.18,225.1,2.2202]
[1733921147018,2.22,225.17,225.1,2.2202]
[1733921147217,2.22,225.16,225.09,10.41027987]
[1733921147493,2.2197,225.16,225.11,2.2201]
[1733921147614,2.2197,225.16,225.09,10.41027987]
[1733921147615,2.22,225.16,225.09,10.41027987]
[1733921147815,2.22,225.18,225.14,2.2198]
[1733921148917,2.22,225.18,225.12,10.41027987]
[1733921149121,2.2193,225.2,225.12,10.41027987]
[1733921149423,2.22,225.21,225.17,2.2194]
[1733921149714,46.16,225.27,225.15,10.41027987]
[1733921149916,2.22,225.26,225.15,10.41027987]
[1733921150316,2.2189,225.23,225.15,10.41027987]
[1733921150929,2.22,225.26,225.19,2.2193]
[1733921150930,2.2188,225.24,225.19,2.2193]
[1733921151224,2.2188,225.24,225.15,10.41027987]
[1733921151412,4.4387,225.26,225.18,2.2194]
[1733921151614,2.2187,225.26,225.18,10.41027987]
[1733921151821,10.77406987,225.32,225.18,10.41027987]
[1733921152123,2.2182,225.3,225.25,2.2187]
[1733921153620,2.22,225.31,225.21,10.41027987]
[1733921154160,0.36379,225.32,225.21,10.41027987]
[1733921154161,2.22,225.3,225.21,10.41027987]
[1733921155018,4.4383,225.3,225.24,2.2187]
[1733921155623,4.4383,225.3,225.21,10.41027987]
[1733921155822,2.22,225.3,225.24,10.41027987]
[1733921156020,0.36379,225.32,225.24,10.41027987]
[1733921156220,2.58379,225.32,225.24,10.41027987]
[1733921156422,2.58379,225.32,225.28,2.2184]
[1733921157326,2.58379,225.32,225.26,2.2185]
[1733921157629,2.58379,225.32,225.24,10.41027987]
[1733921157832,2.2182,225.3,225.25,2.2187]
[1733921158022,2.58379,225.32,225.24,10.41027987]
[1733921158234,0.36379,225.32,225.24,10.41027987]
[1733921158434,0.36379,225.32,225.27,10.41027987]
[1733921158648,0.36379,225.32,225.3,10.41027987]
[1733921158932,2.22,225.38,225.36,2.2176]
[1733921159149,2.22,225.42,225.33,10.41027987]
[1733921159331,2.22,225.42,225.3,12.63027987]
[1733921159834,2.2173,225.39,225.33,2.2179]